{"text_format":"3","workbook":"xlsx","n_sheets":3,"sheets":["Skaiciuoklė","Instrukcijos","Duomenys"],"not_rendered":{"images":1,"macros":1,"defined_names":2},"read":"whole","date_system":"1900"}

{"sheet":"Skaiciuoklė","index":0,"n_rows":86,"n_cols":5,"rows_kept":86,"merged":[[1,3,8,3],[10,1,10,4],[13,1,13,4],[15,1,15,2],[15,3,15,4],[16,1,16,2],[16,3,16,4],[18,1,18,4],[20,1,21,1],[20,2,21,2],[20,3,20,4],[41,3,41,4],[42,3,42,4],[43,3,43,4],[46,3,46,4],[48,1,49,2],[48,3,48,4],[61,3,61,4],[63,3,63,4],[65,3,65,4],[67,1,67,6],[68,1,68,6],[69,1,69,6],[70,1,70,6],[71,1,71,6],[72,1,72,6],[75,1,75,6],[76,1,76,2],[76,3,76,4]]}
{"$rows_empty":10}
[null,"INFORMACIJA APIE TECHNOLOGINIUS NUOSTOLIUS ELEKTROS SKIRSTOMŲJŲ TINKLŲ ĮRENGINUOSE"]
[]
[]
[null,"1. BENDRAI FINANSUOJAMO IŠ EUROPOS SĄJUNGOS FONDŲ LĖŠŲ PROJEKTO DUOMENYS*"]
[]
[null,"Projekto pavadinimas",null,"Nurodomas projekto pavadinimas."]
[null,"Projekto pradžios metai",null,"Nurodomi planuojami pirmieji projekto investicijų atlikimo metai."]
[]
[null,"2. PARAIŠKŲ TEIKIMO METU PROGNOZUOJAMAS ARBA PRAĖJUS VIENERIEMS METAMS PO PROJEKTŲ VEIKLŲ ĮGYVENDINIMO PABAIGOS TEIKIAMAS FAKTINIS TECHNOLOGINIŲ NUOSTOLIŲ SUMAŽĖJIMAS ELEKTROS SKIRSTOMŲJŲ TINKLŲ ĮRENGINIUOSE*"]
[]
[null,"Nr.","Objektas","Įrašomas objekto/įrenginio pavadinimas (n)"]
[{"$nulls":3},"A stulpelis**","B stulpelis***"]
[null,1,"Data","0000-00-00","0000-00-00"]
[null,2,"Pmax (Maksimali metinė transformatoriaus apkrova, kW)",0,0]
[null,3,"WPT (Deklaruotas elektros energijos kiekis per metus duotajam transformatoriui, kWh)",0,0]
[null,4,"cos φ - (galios koeficientas, t.y.  aktyviosios (kW) ir pilnutinės (kVA) galios santykis)",0,0]
[null,5,"Ku (Apkrovos grafiko pilnumo koeficientas)              ",{"$f":"IFERROR(D25/(D24*8760),0)","v":0},{"$f":"IFERROR(E25/(E24*8760),0)","v":0}]
[null,6,"Kf2 (Apkrovos grafiko formos koeficientas)              ",{"$f":"IFERROR((0.124/D27+0.876)^2,0)","v":0},{"$f":"IFERROR((0.124/E27+0.876)^2,0)","v":0}]
[null,7,"S1 (T-1 transformatoriaus vardinė galia, kVA)",0,0]
[null,8,"S2 (T-2 transformatoriaus vardinė galia, kVA)",0,0]
[null,9,"PT1 (T-1 transformatoriaus trumpojo jungimo nuostolių galia, paso duomenys, kW)",0,0]
[null,10,"PT2 (T-2 transformatoriaus trumpojo jungimo nuostolių galia, paso duomenys, kW)",0,0]
[null,11,"P01 (T-1 transformatoriaus tuščiosios eigos nuostolių galia, paso duomenys, kW)",0,0]
[null,12,"P02 (T-2 transformatoriaus tuščiosios eigos nuostolių galia, paso duomenys, kW)",0,0]
[null,13,"S (TP transformatorių T-1 ir T-2 suminė vardinė galia, kVA) ",{"$f":"D29+D30","v":0},{"$f":"E29+E30","v":0}]
[null,14,"PT (TP transformatorių T-1 ir T-2 suminė trumpojo jungimo nuostolių galia, kW) ",{"$f":"D31+D32","v":0},{"$f":"E31+E32","v":0}]
[null,15,"P0 (TP transformatorių T-1 ir T-2 suminė tuščiosios eigos nuostolių galia, kW) ",{"$f":"D33+D34","v":0},{"$f":"E33+E34","v":0}]
[null,16,"WPO (TP T-1 ir T-2 transformatorių tuščiosios eigos nuostoliai per metus, kWh)  ",{"$f":"D37*8760","v":0},{"$f":"E37*8760","v":0}]
[null,17,"WPK  (TP T-1 ir T-2 transformatorių  trumpojo jungimo nuostolių priklausomybė nuo apkrovos per metus, kWh) ",{"$f":"IFERROR(D36*(D25^2*D28/((D35*D26)^2*8760)),0)","v":0},{"$f":"IFERROR(E36*(E25^2*E28/((E35*E26)^2*8760)),0)","v":0}]
[null,18,"WT (TP elektros energijos aktyviosios galios technologiniai  nuostoliai, kWh), WPO+WPK - elektros energijos nuostoliai transformatoriuje ",{"$f":"IFERROR(D38+D39,0)","v":0},{"$f":"IFERROR(E38+E39,0)","v":0}]
[null,19,"Elektros energijos technologiniai nuostoliai per metus nuo persiųsto elektros energijos kiekio, %  ",{"$f":"IFERROR(D40/(D25/100),0)","v":0},{"$f":"IFERROR(E40/(E25/100),0)","v":0}]
[null,20,"Technologinių nuostolių sumažėjimas,  lyginant A ir B stulpeliuose esančius objektus/įrenginius, % ",{"$f":"IFERROR((D40-E40)/(D40/100),0)","v":0}]
[null,21,"Wtr -technologinių elektros energijos nuostolių pasikeitimas transformatoriuje, kWh   ",{"$f":"IFERROR(D40-E40,0)","v":0}]
[null,22,"Technologinių nuostolių sumažėjimas (procentais) nuo  persiųsto elektros energijos kiekio, %                           ",{"$f":"IFERROR(D41-E41,0)","v":0}]
[null,"Pastaba: T-1 ir T-2 (du) transformatoriai esantys TP,skirstomuosiuose punktuose jei yra tik vienas (T-1) transformatorius, tuomet antro (T-2) transformatoriaus visi duomenys lygūs 0."]
[]
[null,23,"Suminis transformatorių (kai objektų daugiau negu 1) technologinių nuostolių sumažėjimas (procentais), nuo persiųsto suminio elektros energijos kiekio per šiuos tranformatorius (apkaičiuojamas svertinis vidurkis).  ",{"$f":"IFERROR(SUM(D43)/(SUM(D25)/100),0)","v":0}]
[]
[null,"Objektas****",null,"Įrašomas objekto/įrenginio pavadinimas (n)"]
[{"$nulls":3},"C stulpelis*****","D stulpelis******"]
[null,1,"Data",0,0]
[null,2,"UN – elektros tinklo, kuriame skaičiuojami technologiniai nuostoliai, vardinė įtampa, kV",0,0]
[null,3,"kf2 – apkrovos grafiko formos koeficientas           ",{"$f":"IFERROR((1090/D56*0.876)^2,0)","v":0},{"$f":"IFERROR((1090/E56*0.876)^2,0)","v":0}]
[null,4,"WPL – persiųsta elektros linija aktyvioji energija, kWh",0,0]
[null,5,"Pmaks –  maksimali elektros linijos apkrovos galia, kW",0,0]
[null,6,"Tmaks – maksimalios galios naudojimo laikas, h     ",{"$f":"IFERROR(D54/D55,0)","v":0},{"$f":"IFERROR(E54/E55,0)","v":0}]
[null,7,"WQ – persiųsta elektros linija reaktyvioji energija, kVArh",0,0]
[null,8,"L – elektros linijos ilgis, km",0,0]
[null,9,"ro – aktyvioji vieno kilometro elektros linijos varža (Ω/km), kuri priklauso nuo linijos tipo, laidininkų markės ir skerspjūvio",0,0]
[null,10,"RL – elektros linijos aktyvioji varža, Ω  ",{"$f":"IFERROR(D58*D59,0)","v":0},{"$f":"IFERROR(E58*E59,0)","v":0}]
[null,11,"Wli – elektros energijos technologiniai nuostoliai elektros linijoje, kWh ",{"$f":"IFERROR(((D54^2+D57^2)/(D60^3*D52^2*8760))*D53*D60,0)","v":0},{"$f":"IFERROR(((E54^2+E57^2)/(E60^3*E52^2*8760))*E53*E60,0)","v":0}]
[null,12,"WL -technologinių elektros energijos nuostolių pasikeitimas elektros linijoje, kWh   C11-D11",{"$f":"IFERROR(D61-E61,0)","v":0}]
[null,13,"Technologiniai nuostoliai elektros linijoje (procentais) nuo suminio persiųsto energijos kiekio, %    ",{"$f":"IFERROR(D61/(D54/100),0)","v":0},{"$f":"IFERROR(E61/(E54/100),0)","v":0}]
[null,14,"Technologinių nuostolių sumažėjimas (procentais) nuo  persiųsto elektros energijos kiekio, %                 ",{"$f":"IFERROR(D63-E63,0)","v":0}]
[]
[null,15,"Suminis elektros linijų (kai objektų daugiau negu 1) technologinių nuostolių sumažėjimas (procentais), nuo persiųsto suminio elektros energijos kiekio per šias elektros linijas (apkaičiuojamas svertinis vidurkis).    ",{"$f":"IFERROR(SUM(D61)/(SUM(D54)/100),0)","v":0}]
[]
[null,"* Duomenys įrašomi laukuose, kurie nuspalvinti žaliai. Geltonai nuspalvintuose laukuose duomenys apskaičiuojami automatiškai.   "]
[null,"** A stulpelyje įrašomi paraiškų teikimo metu siekiamų modernizuoti (atnaujinti) tranformatorių faktiniai technologiniai duomenys."]
[null,"*** B stulpelyje įrašomi paraiškų teikimo metu siekiamų modernizuoti (atnaujinti) tranformatorių prognozuojami technologniai duomenys, praėjus vieneriems metams po projektų veiklų įgyvendinimo pabaigos. Kai informacija teikiama praėjus vieneriems metams po projektų veiklų įgyvendinimo pabaigos -  faktiniai duomenys."]
[null,"**** Skaičiavimai atliekami tik tuo atveju, jei elektros linijose esami laidininkai  keičiami didesnio skerspjūvio laidininkais (turinčiais mažesnę varžą)"]
[null,"*****C stulpelyje įrašomi paraiškų teikimo metu siekiamų modernizuoti (atnaujinti) elektros linijų faktiniai technologiniai duomenys."]
[null,"****** D stulpelyje įrašomi paraiškų teikimo metu siekiamų modernizuoti (atnaujinti) elektros linijų prognozuojami technologniai duomenys, praėjus vieneriems metams po projektų veiklų įgyvendinimo pabaigos. Kai informacija teikiama praėjus vieneriems metams po projektų veiklų įgyvendinimo pabaigos -  faktiniai duomenys."]
[]
[]
[null,"Jei projekte numatoma modernizuoti (atnaujinti) ir transformatorius, ir elektros linijas, tuomet skaičiuojamas suminis technologinių nuostolių sumažėjimas (procentais) nuo persiųsto elektros energijos kiekio."]
[null,"Technologinių nuostolių sumažėjimas (procentais), \nnuo perduoto suminio elektros energijos kiekio rekonstruotuose \nobjektuose (apkaičiuojamas svertinis vidurkis).",null,{"$f":"IFERROR(SUM(D43,D61)/(SUM(D25,D54)/100),0)","v":0}]
[]
[]
[]
[null,null,"Transformatorių pastočių ir skirstymo punktų skaičius, n"]
[null,null,1]
[]
[]
[null,null,"Linijų skaičius, n"]
[null,null,1]

{"sheet":"Instrukcijos","index":1,"n_rows":76,"n_cols":7,"rows_kept":76,"merged":[[1,3,8,3],[10,1,10,6],[13,1,13,4],[15,1,15,2],[15,3,15,6],[16,1,16,2],[16,3,16,6],[18,1,18,4],[20,1,21,1],[20,2,21,2],[20,3,20,4],[20,5,20,6],[41,3,41,4],[41,5,41,6],[42,3,42,4],[42,5,42,6],[43,3,43,4],[43,5,43,6],[46,3,46,6],[48,1,49,2],[48,3,48,4],[48,5,48,6],[61,3,61,4],[61,5,61,6],[63,3,63,4],[63,5,63,6],[65,3,65,6],[67,1,67,6],[68,1,68,6],[69,1,69,6],[70,1,70,6],[71,1,71,6],[72,1,72,6],[74,1,74,6],[75,1,75,2],[75,3,75,6]]}
{"$rows_empty":10}
[null,"INFORMACIJA APIE TECHNOLOGINIUS NUOSTOLIUS ELEKTROS SKIRSTOMŲJŲ TINKLŲ ĮRENGINUOSE"]
[]
[]
[null,"1. BENDRAI FINANSUOJAMO IŠ EUROPOS SĄJUNGOS FONDŲ LĖŠŲ PROJEKTO DUOMENYS*"]
[]
[null,"Projekto pavadinimas",null,"Nurodomas projekto pavadinimas."]
[null,"Projekto pradžios metai",null,"Nurodomi planuojami pirmieji projekto investicijų atlikimo metai."]
[]
[null,"2. PARAIŠKŲ TEIKIMO METU PROGNOZUOJAMAS ARBA PRAĖJUS VIENERIEMS METAMS PO PROJEKTŲ VEIKLŲ ĮGYVENDINIMO PABAIGOS TEIKIAMAS FAKTINIS TECHNOLOGINIŲ NUOSTOLIŲ SUMAŽĖJIMAS ELEKTROS SKIRSTOMŲJŲ TINKLŲ ĮRENGINIUOSE*"]
[]
[null,"Nr.","Objektas","Įrašomas objekto/įrenginio pavadinimas (n)",null,"Įrašomas objekto/įrenginio pavadinimas (n+1)"]
[{"$nulls":3},"A stulpelis**","B stulpelis***","A stulpelis**","B stulpelis***"]
[null,1,"Data","Įrašoma technologinių nuostolių apskaičiavimo data. ","Įrašoma technologinių nuostolių apskaičiavimo data.","Įrašoma technologinių nuostolių apskaičiavimo data. ","Įrašoma technologinių nuostolių apskaičiavimo data."]
[null,2,"Pmax (Maksimali metinė transformatoriaus apkrova, kW)","Įrašoma maksimali metinė transformatoriaus apkrova kW","Įrašoma maksimali metinė transformatoriaus apkrova, kW","Įrašoma maksimali metinė transformatoriaus apkrova kW","Įrašoma maksimali metinė transformatoriaus apkrova, kW"]
[null,3,"WPT (Deklaruotas elektros energijos kiekis per metus duotajam transformatoriui, kWh)","Įrašoma vartotojų deklaruotas elektros energijos kiekis per metus duotajam transformatoriui, kWh","Įrašoma vartotojų deklaruotas elektros energijos kiekis per metus duotajam transformatoriui, kWh","Įrašoma vartotojų deklaruotas elektros energijos kiekis per metus duotajam transformatoriui, kWh","Įrašoma vartotojų deklaruotas elektros energijos kiekis per metus duotajam transformatoriui, kWh"]
[null,4,"cos φ - (galios koeficientas, t.y.  aktyviosios (kW) ir pilnutinės (kVA) galios santykis)","Įrašomas galios koeficientas","Įrašomas galios koeficientas","Įrašomas galios koeficientas","Įrašomas galios koeficientas"]
[null,5,"Ku (Apkrovos grafiko pilnumo koeficientas)                                    3/(2*8760)",0,0,0,0]
[null,6,"Kf2 (Apkrovos grafiko formos koeficientas)                          (0,124/5+0,876)^2",0,0,0,0]
[null,7,"S1 (T-1 transformatoriaus vardinė galia, kVA)","Įrašoma transformatoriaus vardinė galia, kVA","Įrašoma transformatoriaus vardinė galia, kVA","Įrašoma transformatoriaus vardinė galia, kVA","Įrašoma transformatoriaus vardinė galia, kVA"]
[null,8,"S2 (T-2 transformatoriaus vardinė galia, kVA)","Įrašoma transformatoriaus vardinė galia, kVA","Įrašoma transformatoriaus vardinė galia, kVA","Įrašoma transformatoriaus vardinė galia, kVA","Įrašoma transformatoriaus vardinė galia, kVA"]
[null,9,"PT1 (T-1 transformatoriaus trumpojo jungimo nuostolių galia, paso duomenys, kW)","Įrašoma transformatoriaus trumpojo jungimo nuostolių galia, paso duomenys, kW","Įrašoma transformatoriaus trumpojo jungimo nuostolių galia, paso duomenys, kW","Įrašoma transformatoriaus trumpojo jungimo nuostolių galia, paso duomenys, kW","Įrašoma transformatoriaus trumpojo jungimo nuostolių galia, paso duomenys, kW"]
[null,10,"PT2 (T-2 transformatoriaus trumpojo jungimo nuostolių galia, paso duomenys, kW)","Įrašoma transformatoriaus trumpojo jungimo nuostolių galia, paso duomenys, kW","Įrašoma transformatoriaus trumpojo jungimo nuostolių galia, paso duomenys, kW","Įrašoma transformatoriaus trumpojo jungimo nuostolių galia, paso duomenys, kW","Įrašoma transformatoriaus trumpojo jungimo nuostolių galia, paso duomenys, kW"]
[null,11,"P01 (T-1 transformatoriaus tuščiosios eigos nuostolių galia, paso duomenys, kW)","Įrašoma transformatoriaus tuščiosios eigos nuostolių galia, paso duomenys, kW","Įrašoma transformatoriaus tuščiosios eigos nuostolių galia, paso duomenys, kW","Įrašoma transformatoriaus tuščiosios eigos nuostolių galia, paso duomenys, kW","Įrašoma transformatoriaus tuščiosios eigos nuostolių galia, paso duomenys, kW"]
[null,12,"P02 (T-2 transformatoriaus tuščiosios eigos nuostolių galia, paso duomenys, kW)","Įrašoma transformatoriaus tuščiosios eigos nuostolių galia, paso duomenys, kW","Įrašoma transformatoriaus tuščiosios eigos nuostolių galia, paso duomenys, kW","Įrašoma transformatoriaus tuščiosios eigos nuostolių galia, paso duomenys, kW","Įrašoma transformatoriaus tuščiosios eigos nuostolių galia, paso duomenys, kW"]
[null,13,"S (TP transformatorių T-1 ir T-2 suminė vardinė galia, kVA) 7+8",0,0,0,0]
[null,14,"PT (TP transformatorių T-1 ir T-2 suminė trumpojo jungimo nuostolių galia, kW) 9+10",0,0,0,0]
[null,15,"P0 (TP transformatorių T-1 ir T-2 suminė tuščiosios eigos nuostolių galia, kW) 11+12",0,0,0,0]
[null,16,"WPO (TP T-1 ir T-2 transformatorių tuščiosios eigos nuostoliai per metus, kWh)  15*8760",0,0,0,0]
[null,17,"WPK  (TP T-1 ir T-2 transformatorių  trumpojo jungimo nuostolių priklausomybė nuo apkrovos per metus, kWh)    14*(3^2*6/(((13*4)^2)*8760))",0,0,0,0]
[null,18,"WT (TP elektros energijos aktyviosios galios technologiniai  nuostoliai, kWh), WPO+WPK - elektros energijos nuostoliai transformatoriuje 16+17",0,0,0,0]
[null,19,"Elektros energijos technologiniai nuostoliai per metus nuo persiųsto elektros energijos kiekio, %    18/(3/100)",0,0,0,0]
[null,20,"Technologinių nuostolių sumažėjimas,  lyginant A ir B stulpeliuose esančius objektus/įrenginius, %         (A18-B18)/(A18/100)",0,null,0]
[null,21,"Wtr -technologinių elektros energijos nuostolių pasikeitimas transformatoriuje, kWh    A18-B18",0,null,0]
[null,22,"Technologinių nuostolių sumažėjimas (procentais) nuo  persiųsto elektros energijos kiekio, %                                A19-B19",0,null,0]
[null,"Pastaba: T-1 ir T-2 (du) transformatoriai esantys TP,skirstomuosiuose punktuose jei yra tik vienas (T-1) transformatorius, tuomet antro (T-2) transformatoriaus visi duomenys lygūs 0."]
[]
[null,23,"Suminis transformatorių (kai objektų daugiau negu 1) technologinių nuostolių sumažėjimas (procentais), nuo persiųsto suminio elektros energijos kiekio per šiuos tranformatorius (apkaičiuojamas svertinis vidurkis):                                                                   W∑TR% - sunimis technologinių nuostolių sumažėjimas (procentais) nuo  persiųsto elektros energijos kiekio, %;    Wtri - technologinių elektros energijos nuostolių pasikeitimas transformatoriuje, kWh;                                                               WPTi- elektros energijos kiekis persiųstas per transformatorių, kWh;                                                                    n - transformatorių skaičius.                                            "]
[]
[null,"Objektas****",null,"Įrašomas objekto/įrenginio pavadinimas (n)",null,"Įrašomas objekto/įrenginio pavadinimas (n+1)"]
[{"$nulls":3},"C stulpelis*****","D stulpelis******","C stulpelis*****","D stulpelis******"]
[null,1,"Data","Įrašoma technologinių nuostolių apskaičiavimo data. ","Įrašoma technologinių nuostolių apskaičiavimo data.","Įrašoma technologinių nuostolių apskaičiavimo data. ","Įrašoma technologinių nuostolių apskaičiavimo data."]
[null,2,"UN – elektros tinklo, kuriame skaičiuojami technologiniai nuostoliai, vardinė įtampa, kV","Įrašoma elektros tinklo, kuriame skaičiuojami technologiniai nuostoliai, vardinė įtampa, kV","Įrašoma elektros tinklo, kuriame skaičiuojami technologiniai nuostoliai, vardinė įtampa, kV","Įrašoma elektros tinklo, kuriame skaičiuojami technologiniai nuostoliai, vardinė įtampa, kV","Įrašoma elektros tinklo, kuriame skaičiuojami technologiniai nuostoliai, vardinė įtampa, kV"]
[null,3,"kf2 – apkrovos grafiko formos koeficientas                      (1090/6*0,876)^2  ",0,0,0,0]
[null,4,"WPL – persiųsta elektros linija aktyvioji energija, kWh","Įrašoma persiųsta elektros linija aktyvioji energija,  kWh","Įrašoma persiųsta elektros linija aktyvioji energija,  kWh","Įrašoma persiųsta elektros linija aktyvioji energija,  kWh","Įrašoma persiųsta elektros linija aktyvioji energija,  kWh"]
[null,5,"Pmaks –  maksimali elektros linijos apkrovos galia, kW","Įrašoma maksimali elektros linijos apkrovos galia, W","Įrašoma maksimali elektros linijos apkrovos galia, W","Įrašoma maksimali elektros linijos apkrovos galia, W","Įrašoma maksimali elektros linijos apkrovos galia, W"]
[null,6,"Tmaks – maksimalios galios naudojimo laikas, h                   4/5",0,0,0,0]
[null,7,"WQ – persiųsta elektros linija reaktyvioji energija, kVArh","Įrašoma persiųsta elektros linija reaktyvioji energija, kVArh","Įrašoma persiųsta elektros linija reaktyvioji energija, kVArh","Įrašoma persiųsta elektros linija reaktyvioji energija, kVArh","Įrašoma persiųsta elektros linija reaktyvioji energija, kVArh"]
[null,8,"L – elektros linijos ilgis, km","Įrašomas elektros linijos ilgis, km","Įrašomas elektros linijos ilgis, km","Įrašomas elektros linijos ilgis, km","Įrašomas elektros linijos ilgis, km"]
[null,9,"ro – aktyvioji vieno kilometro elektros linijos varža (Ω/km), kuri priklauso nuo linijos tipo, laidininkų markės ir skerspjūvio","Įrašoma aktyvioji vieno kilometro elektros linijos varža (Ω/km), kuri priklauso nuo linijos tipo, laidininkų markės ir skerspjūvio","Įrašoma aktyvioji vieno kilometro elektros linijos varža (Ω/km), kuri priklauso nuo linijos tipo, laidininkų markės ir skerspjūvio","Įrašoma aktyvioji vieno kilometro elektros linijos varža (Ω/km), kuri priklauso nuo linijos tipo, laidininkų markės ir skerspjūvio","Įrašoma aktyvioji vieno kilometro elektros linijos varža (Ω/km), kuri priklauso nuo linijos tipo, laidininkų markės ir skerspjūvio"]
[null,10,"RL – elektros linijos aktyvioji varža, Ω     8*9",0,0,0,0]
[null,11,"Wli – elektros energijos technologiniai nuostoliai elektros linijoje, kWh                        ((4^2+7^2)/(10^3*(2^2)*8760))*3*10",0,0,0,0]
[null,12,"WL -technologinių elektros energijos nuostolių pasikeitimas elektros linijoje, kWh   C11-D11",0,null,0]
[null,13,"Technologiniai nuostoliai elektros linijoje (procentais) nuo suminio persiųsto energijos kiekio, %                            (11)/(4/100)",0,0,0,0]
[null,14,"Technologinių nuostolių sumažėjimas (procentais) nuo  persiųsto elektros energijos kiekio, %                                C13-D13",0,null,0]
[]
[null,15,"Suminis elektros linijų (kai objektų daugiau negu 1) technologinių nuostolių sumažėjimas (procentais), nuo persiųsto suminio elektros energijos kiekio per šias elektros linijas (apkaičiuojamas svertinis vidurkis):                                                                      W∑L% - sunimis technologinių nuostolių sumažėjimas (procentais) nuo  persiųsto elektros energijos kiekio, %;                                                                      WLj- technologinių elektros energijos nuostolių pasikeitimas elektros linijoje, kWh;                                                                         WPLj - elektros energijos kiekis persiųstas elektros linija, kWh;                                                                                                     m - elektros linijų skaičius.    ","     "]
[]
[null,"* Duomenys įrašomi laukuose, kurie nuspalvinti žaliai. Geltonai nuspalvintuose laukuose duomenys apskaičiuojami automatiškai.   "]
[null,"** A stulpelyje įrašomi paraiškų teikimo metu siekiamų modernizuoti (atnaujinti) tranformatorių faktiniai technologiniai duomenys."]
[null,"*** B stulpelyje įrašomi paraiškų teikimo metu siekiamų modernizuoti (atnaujinti) tranformatorių prognozuojami technologniai duomenys, praėjus vieneriems metams po projektų veiklų įgyvendinimo pabaigos. Kai informacija teikiama praėjus vieneriems metams po projektų veiklų įgyvendinimo pabaigos -  faktiniai duomenys."]
[null,"**** Skaičiavimai atliekami tik tuo atveju, jei elektros linijose esami laidininkai  keičiami didesnio skerspjūvio laidininkais (turinčiais mažesnę varžą)"]
[null,"*****C stulpelyje įrašomi paraiškų teikimo metu siekiamų modernizuoti (atnaujinti) elektros linijų faktiniai technologiniai duomenys."]
[null,"****** D stulpelyje įrašomi paraiškų teikimo metu siekiamų modernizuoti (atnaujinti) elektros linijų prognozuojami technologniai duomenys, praėjus vieneriems metams po projektų veiklų įgyvendinimo pabaigos. Kai informacija teikiama praėjus vieneriems metams po projektų veiklų įgyvendinimo pabaigos -  faktiniai duomenys."]
[]
[null,"Jei projekte numatoma modernizuoti (atnaujinti) ir transformatorius, ir elektros linijas, tuomet skaičiuojamas suminis technologinių nuostolių sumažėjimas (procentais) nuo persiųsto elektros energijos kiekio."]
[null,"Technologinių nuostolių sumažėjimas (procentais), \nnuo perduoto suminio elektros energijos kiekio rekonstruotuose objektuose (apkaičiuojamas svertinis vidurkis:                                                                                 W∑%- suminis technologinių nuostolių sumažėjimas (procentais) nuo persiųsto elektros energijos kiekio, %;                                                     \nWtri - technologinių elektros energijos nuostolių pasikeitimas modernizavus (atnaujinus) transformatoriuje, kWh;\nWLj - technologinių elektros energijos nuostolių pasikeitimas modernizavus (atnaujinus) elektros liniją (turinčią mažesnę varžą), kWh;\nWPTi - elektros energijos kiekis persiųstas per modernizuojamą (atnaujinamą) transformatorių, kWh;  \nWPLj - elektros energijos kiekis persiųstas per modernizuojamą (atnaujinamą) elektros liniją (turinčią mažesnę varžą), kWh;\nn – modernizuojamų (atnaujinamų)  transformatorių skaičius;\nm – modernizuojamų (atnaujinamų)  elektros linijų (turinčias mažesnę varžą) skaičius.\n"]

{"sheet":"Duomenys","index":2,"n_rows":6,"n_cols":6,"rows_kept":6,"hidden":true}
[]
[]
[]
[]
[]
[{"$nulls":5},"X"]